Workbook

Sheet полевые раб.
B1: ИНФОРМАЦИЯ ПО ВЕРЕЩАГИНСКОМУ ГОРОДСКОМУ ОКРУГУ
A2: Полевые работы на 07.06.2021
A3: Наименование хозяйства | D3: Подкормка многолетних трав, га | E3: Подкормка озимых, га | F3: Боронование многолетних трав, га | G3: Боронование озимых, га | H3: Весновспашка,га | I3: Культивация | J3: Закрытие влаги, га | K3: Протравлено семян, т
A4: ОАО ППС "Тимирязевский" | F4: 200
A5: ООО "Ленинское" | F5: 280 | J5: 100
A6: ООО "Агросепыч" | D6: 615 | E6: 160 | F6: 1740 | G6: 234 | I6: 1791 | J6: 2366
A7: ООО АП "Соколово" | D7: 104 | F7: 1500 | I7: 650 | J7: 780
A8: ООО АФ "Галинское" | F8: 2936 | I8: 720 | J8: 900
A9: ООО "Заполье" | D9: 1200 | F9: 1200 | I9: 1200 | J9: 1200
A10: ООО АП "Заря Путино" | D10: 1470 | E10: 233 | F10: 1147 | G10: 233 | I10: 5905 | J10: 5905 | K10: 1050
A11: Итого по предприятиям: | D11: =SUM(D4:D10) -> 3389 | E11: 393 | F11: 9003 | G11: 467 | H11: 0 | I11: 10266 | J11: =SUM(J4:J10) -> 11251 | K11: =SUM(K4:K10) -> 1050
A12: КФХ | F12: 1332.2 | H12: 1 | I12: 505 | J12: 514
A13: ВСЕГО: | D13: =D11+D12 -> 3389 | E13: =E11+E12 -> 393 | F13: =F11+F12 -> 10335.2 | G13: 467 | H13: 1 | I13: 10771 | J13: 11765 | K13: 1050
A14: На 08.06.2020г. | D14: 2995 | E14: 61 | F14: 9405 | G14: 61 | H14: 5566 | I14: 8786 | J14: 5617 | K14: 998

Sheet сев
A2: Наименование хозяйства | D2: Яровой сев (зерновые и зернобобовые), га | S2: Зрновые и зернобобовые, всего, га | V2: Яровой сев (прочие), га | AE2: Яровой сев, всего, га | AG2: %
D3: пшеница | G3: ячмень | J3: овес | M3: зернобобовые (горох,вика) | P3: прочие | S3: План | T3: Факт | U3: % | V3: рапс | Y3: кукуруза | AB3: однолетние | AC3: мн. травы б/п | AD3: картофель | AE3: План | AF3: Факт
D4: план | E4: факт | F4: % | G4: план | H4: факт | I4: % | J4: план | K4: факт | L4: % | M4: план | N4: факт | O4: % | P4: план | Q4: факт | R4: % | V4: план | W4: факт | X4: % | Y4: план | Z4: факт | AA4: %
A5: ОАО ППС "Тимирязевский" | F5: =E5/D5*100 ->  | I5: =H5/G5*100 ->  | L5: =K5/J5*100 ->  | O5: =N5/M5*100 ->  | R5: =Q5/P5*100 ->  | U5: =T5/S5*100 ->  | X5: =W5/V5*100 ->  | AA5: =Z5/Y5*100 ->  | AG5: =AF5/AE5*100 -> 
A6: ООО "Ленинское" | F6: =E6/D6*100 ->  | I6: =H6/G6*100 ->  | L6: =K6/J6*100 ->  | O6: =N6/M6*100 ->  | R6: =Q6/P6*100 ->  | AC6: 100 | AE6: 125 | AF6: 100 | AG6: 80
A7: ООО "Агросепыч" | D7: 350 | E7: 350 | F7: 100 | G7: 732 | H7: 762 | I7: 104.0983607 | J7: 150 | K7: 150 | L7: 100 | M7: 150 | N7: 150 | O7: 100 | S7: 1382 | T7: =E7+H7+K7+N7+Q7 -> 1412 | U7: 102.170767 | AB7: 1465 | AE7: 2847 | AF7: =T7+W7+Z7+AB7+AC7 -> 2877 | AG7: 101.0537408
A8: ООО АП "Соколово" | J8: 200 | K8: 200 | L8: 100 | S8: 200 | T8: =E8+H8+K8+N8+Q8 -> 200 | U8: 100 | AB8: 590 | AE8: 780 | AF8: =T8+W8+Z8+AB8+AC8 -> 790 | AG8: 101.2820513
A9: ООО АФ "Галинское" | D9: 150 | E9: 150 | F9: 100 | G9: 80 | H9: 80 | I9: 100 | J9: 170 | K9: 170 | L9: 100 | S9: 400 | T9: 400 | U9: 100 | AB9: 300 | AC9: 200 | AE9: 900 | AF9: 900 | AG9: 100
A10: ООО "Заполье" | D10: 100 | E10: 100 | F10: 100 | G10: 200 | H10: 200 | I10: 100 | J10: 200 | K10: 200 | L10: 100 | S10: 500 | T10: 500 | U10: 100 | AB10: 636 | AC10: 100 | AE10: 1200 | AF10: 1236 | AG10: 103
A11: ООО АП "Заря Путино" | D11: 505 | E11: 505 | F11: 100 | G11: 1059 | H11: 1059 | I11: 100 | J11: 524 | K11: 524 | L11: 100 | S11: 2088 | T11: 2088 | U11: 100 | V11: 707 | W11: 652 | X11: 92.22065064 | Y11: 750 | Z11: 750 | AA11: 100 | AB11: 2415 | AE11: 5905 | AF11: 5905 | AG11: 100
A12: Итого по предприятиям: | D12: =SUM(D5:D11) -> 1105 | E12: =SUM(E5:E11) -> 1105 | F12: 100 | G12: 2071 | H12: 2101 | I12: 101.4485756 | J12: 1244 | K12: 1244 | L12: 100 | M12: 150 | N12: 150 | O12: 100 | P12: 0 | Q12: 0 | S12: 4570 | T12: 4600 | U12: 100.6564551 | V12: 707 | W12: 652 | X12: 92.22065064 | Y12: 750 | Z12: 750 | AA12: 100 | AB12: 5406 | AC12: 400 | AD12: 0 | AE12: 11757 | AF12: =T12+W12+Z12+AB12+AC12+AD12 -> 11808 | AG12: 100.4337841
A13: КФХ | E13: 246 | H13: 84 | K13: 175 | S13: 500 | T13: 505 | U13: 101 | AC13: 13.8 | AD13: 1 | AE13: 500 | AF13: 519.8 | AG13: 103.96
A14: ВСЕГО: | D14: =D12+D13 -> 1105 | E14: =E12+E13 -> 1351 | F14: 122.2624434 | G14: 2071 | H14: 2185 | I14: 105.5045872 | J14: 1244 | K14: 1419 | L14: 114.0675241 | M14: 150 | N14: 150 | O14: 100 | P14: 0 | Q14: 0 | S14: 5070 | T14: 5105 | U14: 100.6903353 | V14: 707 | W14: 652 | X14: 92.22065064 | Y14: 750 | Z14: 750 | AA14: 100 | AB14: 5406 | AC14: 413.8 | AD14: 1 | AE14: 12257 | AF14: 12327.8 | AG14: 100.5776291
A15: На 08.06.2020г. | E15: 1481 | H15: 1827 | K15: 1448 | N15: 100 | T15: 4856 | W15: 632 | Z15: 569 | AB15: 3732 | AC15: 724 | AD15: 8.5 | AE15: 12810 | AF15: 10521.5 | AG15: 82
